[Event "FIDE Zonal 4-2 Open 2023"]
[Site "Dimbroko"]
[Date "2023.03.27"]
[Round "5.6"]
[White "Foday W. Kondoh"]
[Black "Manan, Yoboue Hermann"]
[Result "0-1"]
[ECO "A13"]
[WhiteElo "1727"]
[BlackElo "2015"]
[Annotator "TA"]
[PlyCount "100"]
[EventDate "2023.03.25"]
[EventType "swiss"]
[EventCountry "IVO"]
[SourceTitle "playchess.com"]
[Source "ChessBase"]
[SourceQuality "1"]
[TimeControl "40/5400+30:1800+30"]

{[%evp 11,100,6,13,-22,-2,-2,0,-8,0,-25,-23,-27,-22,-35,-36,-35,-26,-30,-10,-4,-7,-41,-40,-50,-53,-45,0,-152,-25,-70,-43,-75,-18,-18,-17,-18,11,-41,-47,-100,-101,-146,-45,-354,-367,-344,-362,-346,-356,-505,-501,-535,-537,-501,-500,-524,-529,-498,-421,-646,-618,-626,-615,-621,-610,-612,-613,-889,-879,-777,-823,-863,-804,-1427,-866,-1487,-1035,-1711,-984,-1133,-1105,-1424,-1906,-1949,-1812,-2206,-2011,-1734,-1621,-29986,-29987]} 1. Nf3 {[%emt 0:00:08]} Nf6 {[%emt 0:00:13]} 2. b3 {[%emt 0:00:22]} d5 {[%emt 0:00:18]} 3. Bb2 {[%emt 0:00:04]} Nbd7 {[%emt 0:00:40]} 4. e3 {[%emt 0:00:51]} e6 {[%emt 0:00:57]} 5. c4 {[%emt 0:00:35]} Be7 {[%emt 0:02:32]} 6. Be2 {[%emt 0:01:55]} O-O {[%emt 0:00:18]} 7. Na3 {[%emt 0:00:13] A13: English Opening: 1...e6.} c5 {[%emt 0:01:17]} 8. O-O {[%emt 0:00:52]} b6 {[%emt 0:02:10] [#]} 9. Rc1 $146 {[%emt 0:00:31] The position is equal.} ({Predecessor:} 9. cxd5 exd5 10. d4 Bb7 11. Rc1 Rc8 12. Nb5 a6 13. Nc3 Re8 14. dxc5 bxc5 15. Qd3 {½-½ Neiss,J (2102)-Sawatzky,A (1419) Passau op 7th 1999 (2)}) 9... Bb7 {[%emt 0:01:11]} 10. Nc2 {[%emt 0:02:20]} dxc4 {[%emt 0:01:48]} 11. bxc4 {[%emt 0:03:38]} Qc7 {[%emt 0:00:43]} 12. Nce1 {[%emt 0:03:05]} Rad8 {[%emt 0:01:50]} 13. Qc2 {[%emt 0:00:31]} e5 {[%emt 0:02:29]} 14. d3 {[%emt 0:03:41]} Rfe8 {[%emt 0:00:45]} (14... e4 $5 {[%cal Re4f3]} 15. Nd2 Bd6 $15) 15. e4 {[%emt 0:00:35]} Bd6 {[%emt 0:00:56]} 16. h3 {[%emt 0:02:34]} Nf8 {[%emt 0:01:09][%cal Bd7f8,Bf8e6,Be6f4][%mdl 32]} 17. Qd2 {[%emt 0:00:43]} Ne6 {[%emt 0:01:40]} 18. Nc2 {[%emt 0:00:55]} Nf4 {[%emt 0:00:42]} (18... Bf8 {simplifies} 19. Qe1 Nd4 20. Ne3 Nxf3+ 21. Bxf3 Rxd3 22. Qe2 Rdd8) 19. Kh2 $2 {[%emt 0:04:52]} (19. Ne3 $11) 19... Bc8 {[%emt 0:02:11]} ({Black should try} 19... Bf8 $1 $17 {Strongly threatening ...Nxe4.} 20. Qe3 (20. Bxe5 $2 Rxe5 21. Qxf4 {[%mdl 64] Pin} Bd6 $19) 20... g6) 20. Ng1 {[%emt 0:01:32]} Qd7 {[%emt 0:02:41]} (20... Bf8 $5 {[%cal Rf6e4]} 21. Qc3 Qd6 $15) 21. Ne3 {[%emt 0:02:11]} Bf8 {[%emt 0:01:03] Black has more active pieces.} (21... Be7 $17 22. Qc3 Nxe2 23. Nxe2 Qxd3) 22. Nd5 $11 {[%emt 0:01:11]} N6xd5 {[%emt 0:00:38]} 23. cxd5 {[%emt 0:00:37]} g6 {[%emt 0:04:03]} 24. Bg4 {[%emt 0:01:43]} (24. Rfe1 $11) 24... f5 $15 {[%emt 0:06:13][%cal Bf7f5,Bf5e4][%mdl 32]} 25. Bd1 {[%emt 0:01:01] [#]} (25. Be2 $15) 25... Ba6 $1 $36 {[%emt 0:05:01][%mdl 2048] Hoping for ...fxe4. Black is really pushing.} 26. Be2 {[%emt 0:58:19]} Qb5 {[%emt 0:00:30]} ({Black should play} 26... Bh6 $17 {Threatens to win with ...Nxe2.} 27. Qc2 Nxe2 {[%mdl 64] Discovered Attack} 28. Nxe2 Bxc1 29. Rxc1 Rf8) 27. Rc3 $2 {[%emt 0:00:30][%mdl 8192] Now White is beyond hope.} ({White has to play} 27. a4 $1 $15 Qxa4 28. Ra1) 27... fxe4 $19 {[%emt 0:00:30]} 28. Rb3 {[%emt 0:00:30] [#]} Qa5 {[%emt 0:00:30]} ({Don't go for} 28... Qa4 $2 29. dxe4 Nxe2 30. Nxe2 Qxe4 31. Ng3 Qxd5 32. Qxd5+ Rxd5 33. Ne4 $19) 29. Bc3 {[%emt 0:00:30]} Qa4 {[%emt 0:00:30]} 30. Bd1 {[%emt 0:00:30]} (30. dxe4 {might work better.} Qxe4 31. f3) 30... Qd7 {[%emt 0:00:30]} ({Not} 30... Nxd5 31. Rxb6 $17) 31. Re1 {[%emt 0:00:30]} Qxd5 {[%emt 0:00:30]} 32. Ra3 {[%emt 0:00:30]} Bxd3 {[%emt 0:00:30] White must now prevent ...Qf7.} 33. g3 {[%emt 0:00:30]} Ne6 {[%emt 0:00:30]} 34. Rxa7 {[%emt 0:00:30]} Ra8 {[%emt 0:00:30]} 35. Bb3 {[%emt 0:00:30]} (35. Rxa8 $142 Rxa8 36. a4) 35... c4 {[%emt 0:00:30]} 36. Rxa8 {[%emt 0:00:30]} Rxa8 {[%emt 0:00:30]} 37. Bd1 {[%emt 0:00:33]} Bc5 38. h4 {[%emt 0:00:47]} Bd4 {[%emt 0:25:35] ...Bxc3 would be deadly.} 39. Bg4 {[%emt 0:03:49]} Bxc3 {[%emt 0:04:03]} 40. Qxc3 {[%emt 0:01:31]} Rxa2 {[%emt 0:00:26]} 41. Nh3 {[%emt 0:30:20]} Nd4 {[%emt 0:35:00]} 42. Qb4 {[%emt 0:00:52]} Qc5 {[%emt 0:05:46]} 43. Qc3 {[%emt 0:00:21]} Nb3 {[%emt 0:00:40] aiming for ...Rc2.} 44. Rg1 {[%emt 0:03:35]} Qa5 {[%emt 0:00:48]} 45. Be6+ {[%emt 0:00:00]} Kg7 {[%emt 0:00:00]} 46. Qe1 {[%emt 0:00:00]} Qxe1 {[%emt 0:00:00]} 47. Rxe1 {[%emt 0:00:00]} Ra1 {[%emt 0:00:00]} 48. Re3 {[%emt 0:00:00]} Nd4 {[%emt 0:00:00] ( -> ...c3)} 49. Bxc4 {[%emt 0:00:00]} Bxc4 {[%emt 0:00:00]} 50. Rxe4 {[%emt 0:00:00]} Bd5 {[%emt 0:00:00] Weighted Error Value: White=0.67/Black=0.17 (very precise)} 0-1

[Event "FIDE Zonal 4-2 Open 2023"]
[Site "Dimbroko"]
[Date "2023.03.27"]
[Round "5.9"]
[White "Daniel Kolliemelen"]
[Black "Semeko, Lumen Paco"]
[Result "1-0"]
[ECO "D35"]
[WhiteElo "1805"]
[BlackElo "1483"]
[Annotator "NA RC COMBH"]
[PlyCount "87"]
[EventDate "2023.03.25"]
[EventType "swiss"]
[EventCountry "IVO"]
[SourceTitle "playchess.com"]
[Source "ChessBase"]
[SourceQuality "1"]
[TimeControl "40/5400+30:1800+30"]

1. d4 {[%emt 0:01:33]} d5 {[%emt 0:00:03]} 2. c4 {[%emt 0:00:10]} Nf6 {[%emt 0:00:08]} 3. Nc3 {[%emt 0:01:02]} e6 {[%emt 0:00:09]} 4. e3 {[%emt 0:00:16]} c5 {[%emt 0:00:13]} 5. Bd3 {[%emt 0:00:52]} cxd4 {[%emt 0:00:14]} 6. exd4 {[%emt 0:00:03]} dxc4 {[%emt 0:00:37]} 7. Bxc4 {[%emt 0:00:33]} a6 {[%emt 0:00:34]} 8. Bg5 {[%emt 0:00:20]} Be7 {[%emt 0:00:10]} 9. Nge2 {[%emt 0:01:10]} O-O {[%emt 0:00:10]} 10. O-O {[%emt 0:00:36]} b5 {[%emt 0:01:36]} 11. Bd3 {[%emt 0:00:08]} Bb7 {[%emt 0:00:11]} 12. a3 {[%emt 0:01:11]} Nbd7 {[%emt 0:00:41]} 13. Rc1 {[%emt 0:00:22]} Rc8 {[%emt 0:00:18]} 14. f3 {[%emt 0:03:33]} Nd5 {[%emt 0:01:22]} 15. Bxe7 {[%emt 0:00:13]} Qxe7 16. Nxd5 {[%emt 0:02:04]} Bxd5 {[%emt 0:00:27]} 17. Qd2 {[%emt 0:00:49]} Qd6 {[%emt 0:02:00]} 18. Rfe1 {[%emt 0:02:56]} Nb6 {[%emt 0:01:50]} 19. Rxc8 {[%emt 0:04:54]} Rxc8 {[%emt 0:00:17]} 20. Nc3 {[%emt 0:06:15]} Rd8 {[%emt 0:02:38]} 21. Qf2 {[%emt 0:01:39]} Bc4 {[%emt 0:03:44]} 22. Rd1 {[%emt 0:04:03]} Bxd3 {[%emt 0:04:38]} 23. Rxd3 {[%emt 0:00:59]} Nd5 {[%emt 0:00:27]} 24. h3 {[%emt 0:00:48]} h6 {[%emt 0:00:05]} 25. Ne4 {[%emt 0:00:44]} Qc6 {[%emt 0:02:15]} 26. Rd1 {[%emt 0:02:31]} a5 {[%emt 0:02:09]} 27. Qd2 {[%emt 0:03:21]} b4 {[%emt 0:01:46]} 28. Rc1 {[%emt 0:06:48]} Qb6 {[%emt 0:01:26]} 29. Kh1 {[%emt 0:01:30]} Ne7 {[%emt 0:01:24]} 30. axb4 {[%emt 0:04:33]} axb4 {[%emt 0:01:07]} 31. Rc4 {[%emt 0:03:33]} Nc6 {[%emt 0:00:16]} 32. Nc5 {[%emt 0:00:30]} Qa7 33. Nb3 $15 {[%emt 0:00:30]} ({Better is} 33. Nxe6 $1 $11 fxe6 34. Rxc6) 33... Qa4 {[%emt 0:01:00]} 34. Qc2 {[%emt 0:00:30]} Na5 {[%emt 0:00:30]} (34... Ne7 $15) 35. Nxa5 {[%emt 0:00:30]} Qxa5 {[%emt 0:00:30]} 36. Rc8 {[%emt 0:00:30]} Rxc8 {[%emt 0:00:30]} 37. Qxc8+ {[%emt 0:00:30]} Kh7 {[%emt 0:00:30]} 38. Qc2+ {[%emt 0:00:30]} g6 {[%emt 0:00:30]} 39. Kh2 {[%emt 0:00:30]} Qd5 {[%emt 0:00:30]} 40. Qc7 {[%emt 0:00:30]} Kg7 {[%emt 0:00:30]} 41. Qe5+ {[%emt 0:30:30]} Qxe5+ {[%emt 0:30:30]} 42. dxe5 {[%emt 0:00:30]} Kf8 $2 {[%emt 0:00:30]} (42... f6 $11) 43. Kg3 {[%emt 0:00:30]} Ke7 {[%emt 0:00:30]} 44. Kf4 {[%emt 0:00:30]} 1-0

[Event "FIDE Zonal 4-2 Open 2023"]
[Site "Dimbroko"]
[Date "2023.03.27"]
[Round "5.10"]
[White "Amako Marc Arnold"]
[Black "KONAN KOUASSI AUGUSTIN"]
[Result "1-0"]
[ECO "E73"]
[WhiteElo "1647"]
[BlackElo "1775"]
[Annotator "NA RC COMBH"]
[PlyCount "37"]
[EventDate "2023.03.25"]
[EventType "swiss"]
[EventCountry "IVO"]
[SourceTitle "playchess.com"]
[Source "ChessBase"]
[SourceQuality "1"]
[TimeControl "40/5400+30:1800+30"]

1. c4 {[%emt 0:01:46]} Nf6 {[%emt 0:07:26]} 2. Nc3 {[%emt 0:00:12]} d6 {[%emt 0:00:19]} 3. d4 {[%emt 0:00:29]} g6 {[%emt 0:00:16]} 4. e4 {[%emt 0:00:07]} Bg7 {[%emt 0:00:08]} 5. Be2 {[%emt 0:00:13]} O-O {[%emt 0:03:28]} 6. h4 {[%emt 0:00:04]} Nbd7 {[%emt 0:01:31]} 7. h5 {[%emt 0:00:24]} e5 {[%emt 0:00:10]} 8. d5 {[%emt 0:00:49]} Nc5 {[%emt 0:00:08]} 9. h6 {[%emt 0:02:55]} Bh8 {[%emt 0:00:07]} 10. Bg5 {[%emt 0:00:38]} a5 {[%emt 0:00:45]} 11. Qc2 {[%emt 0:01:58]} c6 {[%emt 0:05:32]} 12. Rd1 {[%emt 0:00:52]} Qc7 {[%emt 0:00:22]} 13. Bf3 {[%emt 0:11:44]} Ne8 {[%emt 0:12:19]} 14. g4 {[%emt 0:02:42]} f6 {[%emt 0:07:27]} 15. Be3 {[%emt 0:00:11]} Nd7 {[%emt 0:00:59]} 16. dxc6 {[%emt 0:03:53]} bxc6 {[%emt 0:00:09]} 17. c5 {[%emt 0:00:03]} dxc5 {[%emt 0:01:34]} 18. Na4 {[%emt 0:05:54]} Nd6 {[%emt 0:11:59]} 19. Nxc5 {[%emt 0:01:52]} 1-0

[Event "FIDE Zonal 4-2 Open 2023"]
[Site "Dimbroko"]
[Date "2023.03.27"]
[Round "5.11"]
[White "Koita, Saidou"]
[Black "Harold Evans"]
[Result "0-1"]
[ECO "B01"]
[WhiteElo "1569"]
[BlackElo "1714"]
[Annotator "NA RC COMBH"]
[PlyCount "79"]
[EventDate "2023.03.25"]
[EventType "swiss"]
[EventCountry "IVO"]
[SourceTitle "playchess.com"]
[Source "ChessBase"]
[SourceQuality "1"]
[TimeControl "40/5400+30:1800+30"]

1. e4 {[%emt 0:00:20]} d5 {[%emt 0:01:23]} 2. exd5 {[%emt 0:00:17]} Qxd5 {[%emt 0:00:16]} 3. Nc3 {[%emt 1:31:23]} Qd6 {[%emt 1:30:21]} 4. Nf3 {[%emt 0:00:00]} Nc6 {[%emt 0:00:00]} 5. d4 {[%emt 0:00:00]} Bg4 {[%emt 0:00:00]} 6. Be2 {[%emt 0:00:00]} e6 {[%emt 0:00:00]} 7. Be3 {[%emt 0:00:00]} Nf6 {[%emt 0:00:00]} 8. O-O {[%emt 0:00:00]} Nd5 {[%emt 0:00:00]} 9. Ne4 {[%emt 0:00:00]} Qd7 {[%emt 0:00:00]} 10. c3 {[%emt 0:00:00]} O-O-O {[%emt 0:00:00]} 11. Bb5 {[%emt 0:00:00]} f5 {[%emt 0:00:00]} 12. Nc5 {[%emt 0:00:00]} Qe8 {[%emt 0:00:00]} 13. b4 {[%emt 0:00:00]} Nxc3 {[%emt 0:00:00]} 14. Qd3 {[%emt 0:00:00]} Bxf3 {[%emt 0:00:00]} 15. gxf3 {[%emt 0:00:00]} Nd5 {[%emt 0:00:00]} 16. Rfd1 {[%emt 0:00:00]} Ndxb4 {[%emt 0:00:00]} 17. Qc4 {[%emt 0:00:00]} Bxc5 {[%emt 0:00:00]} 18. dxc5 {[%emt 0:00:00]} Qg6+ {[%emt 0:00:00]} 19. Kh1 {[%emt 0:00:00]} Qh5 {[%emt 0:00:00]} 20. Qxe6+ {[%emt 0:00:00]} Kb8 {[%emt 0:00:00]} 21. Be2 {[%emt 0:09:00]} Nc2 {[%emt 0:00:00]} 22. Rxd8+ {[%emt 0:00:00]} Rxd8 {[%emt 0:00:00]} 23. Rb1 {[%emt 0:00:00]} Qe8 {[%emt 0:00:00]} 24. Qb3 {[%emt 0:00:00]} N2b4 {[%emt 0:00:00]} 25. a3 {[%emt 0:00:00]} f4 {[%emt 0:00:00]} 26. axb4 {[%emt 0:00:00]} fxe3 {[%emt 0:00:00]} 27. fxe3 {[%emt 0:00:00]} Rd2 {[%emt 0:00:00]} 28. Rb2 {[%emt 0:00:00]} Rxb2 {[%emt 0:00:00]} 29. Qxb2 {[%emt 0:00:00]} Qe5 {[%emt 0:00:00]} 30. Qxe5 {[%emt 0:00:00]} Nxe5 {[%emt 0:00:00]} 31. f4 {[%emt 0:00:00]} Nc6 {[%emt 0:00:00]} 32. b5 {[%emt 0:00:00]} Na5 {[%emt 0:00:00]} 33. Kg2 {[%emt 0:00:00]} Kc8 {[%emt 0:00:00]} 34. e4 {[%emt 0:06:30]} Nb3 {[%emt 0:00:00]} 35. c6 {[%emt 0:00:00]} bxc6 {[%emt 0:00:00]} 36. bxc6 {[%emt 0:00:00]} Nd4 {[%emt 0:00:00]} 37. Ba6+ {[%emt 0:00:00]} Kd8 {[%emt 0:00:00]} 38. Kf2 {[%emt 0:00:00]} Nxc6 {[%emt 0:00:00]} 39. Ke3 {[%emt 0:00:00]} Nb4 {[%emt 0:00:00]} 40. Be2 {[%emt 0:00:00]} 0-1

[Event "FIDE Zonal 4-2 Open 2023"]
[Site "Dimbroko"]
[Date "2023.03.27"]
[Round "5.12"]
[White "De Gondo, Simplice Armel"]
[Black "AKA JUSTIN JEAN-ROBERT KOUMI"]
[Result "1-0"]
[ECO "D00"]
[WhiteElo "2086"]
[BlackElo "1833"]
[Annotator "TA"]
[PlyCount "47"]
[EventDate "2023.03.25"]
[EventType "swiss"]
[EventCountry "IVO"]
[SourceTitle "playchess.com"]
[Source "ChessBase"]
[SourceQuality "1"]
[TimeControl "40/5400+30:1800+30"]

{[%evp 9,47,0,43,31,56,38,71,53,99,67,121,123,145,139,193,113,288,272,368,352,707,414,820,827,939,968,1911,1873,29970,29972,29960,29952,5822,5769,5714,1237,1228,1214,1203,1197]} 1. d4 {[%emt 0:00:22]} d5 {[%emt 0:00:11]} 2. e3 {[%emt 0:00:02]} Nf6 {[%emt 0:01:30]} 3. Bd3 {[%emt 0:00:01]} Nc6 {[%emt 0:02:11]} 4. f4 {[%emt 0:00:05]} e6 {[%emt 0:03:18]} 5. c3 {[%emt 0:00:02]} Bd7 {[%emt 0:07:42]} 6. Nd2 {[%emt 0:00:16] D00: 1 d4 d5: Unusual lines.} g6 {[%emt 0:01:45]} 7. Ngf3 {[%emt 0:00:04]} Bg7 {[%emt 0:00:54]} 8. O-O {[%emt 0:00:02] White is better.} Qe7 {[%emt 0:01:32]} (8... Ne7 $14 {was preferrable.}) 9. Ne5 {[%emt 0:00:20]} O-O-O {[%emt 0:00:49]} (9... O-O $14) 10. b4 $16 {[%emt 0:00:05][%cal Bb2b4,Bb4b5][%mdl 32] [#] White is more active.} Nxe5 $146 {[%emt 0:02:00]} ({Predecessor:} 10... g5 11. a4 gxf4 12. exf4 h5 13. Ba3 Nxe5 14. fxe5 Ng4 15. b5 Qg5 {0-1 Gil,J (1560)-Rossi,P (1821) Corsica CC-B 2004 (7)}) 11. fxe5 {[%emt 0:00:05]} Ne8 {[%emt 0:00:54]} (11... Ng8 $16) 12. e4 {[%emt 0:00:44]} (12. b5 $18) 12... dxe4 $2 {[%emt 0:07:17] [#]} (12... f6 $16 {was necessary.}) 13. Nxe4 $18 {[%emt 0:00:40]} f6 {[%emt 0:01:00] Repels Bg5} 14. b5 {[%emt 0:00:56]} fxe5 $2 {[%emt 0:01:40]} (14... Kb8 15. a4 Bc8) 15. Bg5 {[%emt 0:00:23]} Nf6 {[%emt 0:06:13]} (15... Qa3 $142 16. Qb3 (16. Bxd8 Kxd8 17. dxe5 Bxe5 $18) 16... Bf8 17. Bxd8 Qxb3 18. axb3 Kxd8 19. Rxa7 exd4) 16. dxe5 {[%emt 0:00:13]} Bxb5 {[%emt 0:02:17]} 17. exf6 {[%emt 0:00:23]} Rxd3 {[%emt 0:04:32]} 18. fxe7 {[%emt 0:00:50]} Rxd1 {[%emt 0:00:44]} 19. Raxd1 {[%emt 0:00:15]} b6 {[%emt 0:04:10]} 20. Rd8+ {[%emt 0:04:26]} Kb7 {[%emt 0:00:20]} 21. Rxh8 {[%emt 0:01:06][%cal Of1b1] [#] Rb1! would kill now. White is clearly winning.} Bxh8 {[%emt 0:00:25]} 22. Rf8 {[%emt 0:00:05]} Bg7 {[%emt 0:00:38]} 23. e8=Q {[%emt 0:00:06]} Bxe8 {[%emt 0:00:22]} 24. Rxe8 {[%emt 0:00:03] White took control after the opening.   Weighted Error Value: White=0.48/Black=1.06} 1-0

[Event "FIDE Zonal 4-2 Open 2023"]
[Site "Dimbroko"]
[Date "2023.03.29"]
[Round "6.1"]
[White "Nean, Franck Anderson"]
[Black "Ortega Amarelle, Mariano"]
[Result "1-0"]
[ECO "D07"]
[WhiteElo "1851"]
[BlackElo "2472"]
[Annotator "TA"]
[PlyCount "91"]
[EventDate "2023.03.25"]
[EventType "swiss"]
[EventCountry "IVO"]
[SourceTitle "playchess.com"]
[Source "ChessBase"]
[SourceQuality "1"]
[TimeControl "40/5400+30:1800+30"]

{[%evp 12,91,40,44,61,60,72,66,76,41,41,39,43,41,65,72,64,68,69,53,66,48,49,55,71,63,78,71,79,90,85,60,89,95,91,84,88,75,88,73,69,73,113,115,130,60,123,123,127,70,105,92,93,51,99,102,111,101,206,189,269,189,616,590,626,589,427,184,1454,1651,1651,1620,1368,1357,12839,12839,12837,12202,12840,6049,12841,12841]} 1. d4 {[%emt 0:00:30]} d5 {[%emt 0:00:10]} 2. c4 {[%emt 0:00:27]} Nc6 {[%emt 0:01:21]} 3. cxd5 {[%emt 0:01:47]} Qxd5 {[%emt 0:00:35]} 4. e3 {[%emt 0:00:45]} e5 {[%emt 0:01:31]} 5. Nc3 {[%emt 0:00:12]} Bb4 {[%emt 0:00:26]} 6. a3 {[%emt 0:01:04]} Bxc3+ {[%emt 0:00:59]} 7. bxc3 {[%emt 0:00:06]} exd4 {[%emt 0:03:27] D07: Queen's Gambit: Chigorin Defence.} 8. cxd4 {[%emt 0:03:30]} Nf6 {[%emt 0:03:26]} 9. Ne2 {[%emt 0:10:33]} Ne4 {[%emt 0:11:01] White is slightly better.} 10. Nf4 {[%emt 0:02:57]} (10. Qa4 {simplifies} Nd6 11. Bb2 Qa5+ 12. Qxa5 Nxa5 13. Bc3) 10... Qa5+ {[%emt 0:03:08]} 11. Bd2 {[%emt 0:00:08]} Nxd2 {[%emt 0:00:46]} 12. Qxd2 {[%emt 0:00:07] [#]} O-O $146 {[%emt 0:02:40]} ({Predecessor:} 12... Bd7 13. Bc4 O-O 14. Rb1 b6 15. Bd5 Rac8 16. Rc1 Qxd2+ 17. Kxd2 Na5 18. Rc3 c6 {½-½ Andersen,S (2159)-Klauner,T (2032) EU-Cup 34th Porto Carras 2018 (3.4)}) 13. Qxa5 {[%emt 0:01:13]} Nxa5 {[%emt 0:00:03]} 14. Rc1 {[%emt 0:00:21]} c6 {[%emt 0:02:46]} 15. Bd3 {[%emt 0:01:02] Black is weak on the dark squares} Rd8 {[%emt 0:01:47]} 16. O-O {[%emt 0:01:54]} Rd6 {[%emt 0:00:43]} 17. h4 {[%emt 0:04:42]} Bd7 {[%emt 0:00:39]} 18. Rc3 {[%emt 0:00:13]} Rd8 {[%emt 0:02:47]} 19. f3 {[%emt 0:05:49]} g6 {[%emt 0:01:23]} 20. g4 {[%emt 0:00:25][%cal Bg2g4,Bg4g5][%mdl 32]} Kg7 {[%emt 0:01:46]} 21. Kf2 {[%emt 0:00:14]} Be8 {[%emt 0:02:41]} 22. g5 {[%emt 0:05:29]} h6 {[%emt 0:02:51]} 23. Rg1 {[%emt 0:33:38]} b6 {[%emt 0:00:30]} 24. Be4 {[%emt 0:00:30]} Bd7 {[%emt 0:00:30]} 25. Nd3 {[%emt 0:00:30]} hxg5 {[%emt 0:00:30]} 26. hxg5 {[%emt 0:00:30]} ({Stronger than} 26. Rxg5 f5 27. Nf4 fxe4 $17) 26... Rh8 {[%emt 0:00:30]} 27. Ne5 {[%emt 0:00:30]} Rh2+ {[%emt 0:00:30] [#]} 28. Rg2 {[%emt 0:00:30]} (28. Kg3 $1 $16 {[%cal Rg3h2]} Rh5 29. f4) 28... Rxg2+ {[%emt 0:00:30]} (28... Rh8 $14) 29. Kxg2 $16 Be8 30. Ng4 {[%emt 0:01:00]} ({Better is} 30. Kf2 $16) 30... Rd8 {[%emt 0:40:45]} 31. Nf6 {[%emt 0:00:30]} Kf8 32. f4 {[%emt 0:16:30] White has more active pieces.} Ke7 {[%emt 0:02:06]} (32... Bd7 $1 $14) 33. f5 {[%emt 0:01:15]} gxf5 {[%emt 0:01:20]} 34. Bxf5 {[%emt 0:00:02]} Kd6 {[%emt 0:04:51]} (34... c5 $16) 35. Kg3 {[%emt 0:04:05] e4 would be deadly.} Nb7 {[%emt 0:00:39]} (35... b5 $142 36. Rc5 Ke7) 36. e4 {[%emt 0:01:51][%cal Be3e4,Be4e5][%mdl 32] Strongly threatening e5+.} Na5 $2 {[%emt 0:04:40]} (36... Ke7) 37. Kf4 $18 {[%emt 0:00:14]} Ke7 {[%emt 0:01:17]} 38. d5 {[%emt 0:03:19]} cxd5 {[%emt 0:02:15]} 39. Nxd5+ {[%emt 0:00:15]} (39. exd5 $142 b5 40. Rc7+ Kd6 41. Nxe8+ Rxe8 42. Rd7+ Kc5 43. Rxf7) 39... Kd6 {[%emt 0:01:31]} (39... Kf8 40. Rc7 a6 41. Nxb6 Nc6) 40. e5+ {[%emt 0:00:13] White is clearly winning.} ({Weaker is} 40. Rc7 Nc6 $14) 40... Kxd5 {[%emt 0:00:13]} 41. Rd3+ {[%emt 0:30:06][%mdl 64] [#] Skewer} Kc5 {[%emt 0:02:41]} 42. Rxd8 {[%emt 0:00:00]} Ba4 {[%emt 0:01:26]} 43. e6 {[%emt 0:00:00]} fxe6 {[%emt 0:00:11]} 44. Bxe6 {[%emt 0:00:00]} Nc6 {[%emt 0:00:22]} 45. Rd5+ {[%emt 0:00:00]} Kc4 {[%emt 0:00:43]} 46. Ra5+ {[%emt 0:04:34] Weighted Error Value: White=0.25 (precise) /Black=0.32} 1-0